Workbook

Sheet Addition zweier Sinuskurven
A1: Addition zweier Sinuskurven
A2: F1(t) = a1∙sin(2π∙(f1∙t))
A3: F2(t) = a2∙sin(2π∙(f2∙(t+Delta_t))
A5: a1 = | B5: 1
A6: f1 = | B6: 100 | C6: f2/f1 = | D6: 1.5
A7: a2 = | B7: 1
A8: f2 = | B8: =B6*D6 -> 150
A9: Delta_t = | B9: 0
A10: Startzeit t = | B10: 0
A11: Zeitschritt = | B11: 5e-05
A13: lfd Nr | B13: Zeit | C13: F1(t) | D13: F2(t) | E13: F1(t)+F2(t)
A14: 0 | B14: =Startzeit -> 0 | C14: =_a1*SIN(2*PI()*_f1*B14) -> 0 | D14: =_a2*SIN(2*PI()*_f2*(B14+Delta_t)) -> 0 | E14: =C14+D14 -> 0
A15: =A14+1 -> 1 | B15: =B14+Zeitschritt -> 5e-05 | C15: =_a1*SIN(2*PI()*_f1*B15) -> 0.03141075908 | D15: =_a2*SIN(2*PI()*_f2*(B15+Delta_t)) -> 0.04710645071 | E15: =C15+D15 -> 0.07851720979
A16: =A15+1 -> 2 | B16: =B15+Zeitschritt -> 0.0001 | C16: =_a1*SIN(2*PI()*_f1*B16) -> 0.06279051953 | D16: =_a2*SIN(2*PI()*_f2*(B16+Delta_t)) -> 0.09410831332 | E16: 0.1568988328
A17: 3 | B17: =B16+Zeitschritt -> 0.00015 | C17: =_a1*SIN(2*PI()*_f1*B17) -> 0.09410831332 | D17: =_a2*SIN(2*PI()*_f2*(B17+Delta_t)) -> 0.1409012319 | E17: 0.2350095453
A18: 4 | B18: =B17+Zeitschritt -> 0.0002 | C18: =_a1*SIN(2*PI()*_f1*B18) -> 0.1253332336 | D18: =_a2*SIN(2*PI()*_f2*(B18+Delta_t)) -> 0.1873813146 | E18: 0.3127145482
A19: 5 | B19: =B18+Zeitschritt -> 0.00025 | C19: =_a1*SIN(2*PI()*_f1*B19) -> 0.156434465 | D19: =_a2*SIN(2*PI()*_f2*(B19+Delta_t)) -> 0.2334453639 | E19: =C19+D19 -> 0.3898798289
A20: 6 | B20: =B19+Zeitschritt -> 0.0003 | C20: =_a1*SIN(2*PI()*_f1*B20) -> 0.1873813146 | D20: =_a2*SIN(2*PI()*_f2*(B20+Delta_t)) -> 0.278991106 | E20: 0.4663724206
A21: 7 | B21: =B20+Zeitschritt -> 0.00035 | C21: =_a1*SIN(2*PI()*_f1*B21) -> 0.2181432414 | D21: =_a2*SIN(2*PI()*_f2*(B21+Delta_t)) -> 0.3239174182 | E21: 0.5420606596
A22: 8 | B22: =B21+Zeitschritt -> 0.0004 | C22: =_a1*SIN(2*PI()*_f1*B22) -> 0.2486898872 | D22: =_a2*SIN(2*PI()*_f2*(B22+Delta_t)) -> 0.3681245527 | E22: 0.6168144398
A23: 9 | B23: =B22+Zeitschritt -> 0.00045 | C23: =_a1*SIN(2*PI()*_f1*B23) -> 0.278991106 | D23: =_a2*SIN(2*PI()*_f2*(B23+Delta_t)) -> 0.4115143586 | E23: 0.6905054646
A24: 10 | B24: =B23+Zeitschritt -> 0.0005 | C24: =_a1*SIN(2*PI()*_f1*B24) -> 0.3090169944 | D24: =_a2*SIN(2*PI()*_f2*(B24+Delta_t)) -> 0.4539904997 | E24: 0.7630074941
A25: 11 | B25: =B24+Zeitschritt -> 0.00055 | C25: =_a1*SIN(2*PI()*_f1*B25) -> 0.3387379202 | D25: =_a2*SIN(2*PI()*_f2*(B25+Delta_t)) -> 0.4954586684 | E25: 0.8341965887
A26: 12 | B26: =B25+Zeitschritt -> 0.0006 | C26: =_a1*SIN(2*PI()*_f1*B26) -> 0.3681245527 | D26: =_a2*SIN(2*PI()*_f2*(B26+Delta_t)) -> 0.535826795 | E26: 0.9039513477
A27: 13 | B27: =B26+Zeitschritt -> 0.00065 | C27: =_a1*SIN(2*PI()*_f1*B27) -> 0.3971478906 | D27: =_a2*SIN(2*PI()*_f2*(B27+Delta_t)) -> 0.575005252 | E27: 0.9721531427
A28: 14 | B28: =B27+Zeitschritt -> 0.0007 | C28: =_a1*SIN(2*PI()*_f1*B28) -> 0.4257792916 | D28: =_a2*SIN(2*PI()*_f2*(B28+Delta_t)) -> 0.6129070537 | E28: 1.038686345
A29: 15 | B29: =B28+Zeitschritt -> 0.00075 | C29: =_a1*SIN(2*PI()*_f1*B29) -> 0.4539904997 | D29: =_a2*SIN(2*PI()*_f2*(B29+Delta_t)) -> 0.6494480483 | E29: 1.103438548
A30: 16 | B30: =B29+Zeitschritt -> 0.0008 | C30: =_a1*SIN(2*PI()*_f1*B30) -> 0.4817536741 | D30: =_a2*SIN(2*PI()*_f2*(B30+Delta_t)) -> 0.6845471059 | E30: 1.16630078
A31: 17 | B31: =B30+Zeitschritt -> 0.00085 | C31: =_a1*SIN(2*PI()*_f1*B31) -> 0.5090414158 | D31: =_a2*SIN(2*PI()*_f2*(B31+Delta_t)) -> 0.7181262978 | E31: 1.227167714
A32: 18 | B32: =B31+Zeitschritt -> 0.0009 | C32: =_a1*SIN(2*PI()*_f1*B32) -> 0.535826795 | D32: =_a2*SIN(2*PI()*_f2*(B32+Delta_t)) -> 0.7501110696 | E32: 1.285937865
A33: 19 | B33: =B32+Zeitschritt -> 0.00095 | C33: =_a1*SIN(2*PI()*_f1*B33) -> 0.5620833779 | D33: =_a2*SIN(2*PI()*_f2*(B33+Delta_t)) -> 0.7804304073 | E33: 1.342513785
A34: 20 | B34: =B33+Zeitschritt -> 0.001 | C34: =_a1*SIN(2*PI()*_f1*B34) -> 0.5877852523 | D34: =_a2*SIN(2*PI()*_f2*(B34+Delta_t)) -> 0.8090169944 | E34: 1.396802247
A35: 21 | B35: =B34+Zeitschritt -> 0.00105 | C35: =_a1*SIN(2*PI()*_f1*B35) -> 0.6129070537 | D35: =_a2*SIN(2*PI()*_f2*(B35+Delta_t)) -> 0.8358073614 | E35: 1.448714415
A36: 22 | B36: =B35+Zeitschritt -> 0.0011 | C36: =_a1*SIN(2*PI()*_f1*B36) -> 0.6374239897 | D36: =_a2*SIN(2*PI()*_f2*(B36+Delta_t)) -> 0.860742027 | E36: 1.498166017
A37: 23 | B37: =B36+Zeitschritt -> 0.00115 | C37: =_a1*SIN(2*PI()*_f1*B37) -> 0.6613118653 | D37: =_a2*SIN(2*PI()*_f2*(B37+Delta_t)) -> 0.8837656301 | E37: 1.545077495
A38: 24 | B38: =B37+Zeitschritt -> 0.0012 | C38: =_a1*SIN(2*PI()*_f1*B38) -> 0.6845471059 | D38: =_a2*SIN(2*PI()*_f2*(B38+Delta_t)) -> 0.9048270525 | E38: 1.589374158
A39: 25 | B39: =B38+Zeitschritt -> 0.00125 | C39: =_a1*SIN(2*PI()*_f1*B39) -> 0.7071067812 | D39: =_a2*SIN(2*PI()*_f2*(B39+Delta_t)) -> 0.9238795325 | E39: 1.630986314
A40: 26 | B40: =B39+Zeitschritt -> 0.0013 | C40: =_a1*SIN(2*PI()*_f1*B40) -> 0.7289686274 | D40: =_a2*SIN(2*PI()*_f2*(B40+Delta_t)) -> 0.940880769 | E40: 1.669849396
A41: 27 | B41: =B40+Zeitschritt -> 0.00135 | C41: =_a1*SIN(2*PI()*_f1*B41) -> 0.7501110696 | D41: =_a2*SIN(2*PI()*_f2*(B41+Delta_t)) -> 0.9557930148 | E41: 1.705904084
A42: 28 | B42: =B41+Zeitschritt -> 0.0014 | C42: =_a1*SIN(2*PI()*_f1*B42) -> 0.7705132428 | D42: =_a2*SIN(2*PI()*_f2*(B42+Delta_t)) -> 0.9685831611 | E42: 1.739096404
A43: 29 | B43: =B42+Zeitschritt -> 0.00145 | C43: =_a1*SIN(2*PI()*_f1*B43) -> 0.7901550124 | D43: =_a2*SIN(2*PI()*_f2*(B43+Delta_t)) -> 0.9792228106 | E43: 1.769377823
A44: 30 | B44: =B43+Zeitschritt -> 0.0015 | C44: =_a1*SIN(2*PI()*_f1*B44) -> 0.8090169944 | D44: =_a2*SIN(2*PI()*_f2*(B44+Delta_t)) -> 0.9876883406 | E44: 1.796705335
A45: 31 | B45: =B44+Zeitschritt -> 0.00155 | C45: =_a1*SIN(2*PI()*_f1*B45) -> 0.8270805743 | D45: =_a2*SIN(2*PI()*_f2*(B45+Delta_t)) -> 0.9939609555 | E45: 1.82104153
A46: 32 | B46: =B45+Zeitschritt -> 0.0016 | C46: =_a1*SIN(2*PI()*_f1*B46) -> 0.8443279255 | D46: =_a2*SIN(2*PI()*_f2*(B46+Delta_t)) -> 0.9980267284 | E46: 1.842354654
A47: 33 | B47: =B46+Zeitschritt -> 0.00165 | C47: =_a1*SIN(2*PI()*_f1*B47) -> 0.860742027 | D47: =_a2*SIN(2*PI()*_f2*(B47+Delta_t)) -> 0.9998766325 | E47: 1.860618659
A48: 34 | B48: =B47+Zeitschritt -> 0.0017 | C48: =_a1*SIN(2*PI()*_f1*B48) -> 0.87630668 | D48: =_a2*SIN(2*PI()*_f2*(B48+Delta_t)) -> 0.9995065604 | E48: 1.87581324
A49: 35 | B49: =B48+Zeitschritt -> 0.00175 | C49: =_a1*SIN(2*PI()*_f1*B49) -> 0.8910065242 | D49: =_a2*SIN(2*PI()*_f2*(B49+Delta_t)) -> 0.9969173337 | E49: 1.887923858
A50: 36 | B50: =B49+Zeitschritt -> 0.0018 | C50: =_a1*SIN(2*PI()*_f1*B50) -> 0.9048270525 | D50: =_a2*SIN(2*PI()*_f2*(B50+Delta_t)) -> 0.9921147013 | E50: 1.896941754
A51: 37 | B51: =B50+Zeitschritt -> 0.00185 | C51: =_a1*SIN(2*PI()*_f1*B51) -> 0.9177546257 | D51: =_a2*SIN(2*PI()*_f2*(B51+Delta_t)) -> 0.9851093262 | E51: 1.902863952
A52: 38 | B52: =B51+Zeitschritt -> 0.0019 | C52: =_a1*SIN(2*PI()*_f1*B52) -> 0.9297764859 | D52: =_a2*SIN(2*PI()*_f2*(B52+Delta_t)) -> 0.9759167619 | E52: 1.905693248
A53: 39 | B53: =B52+Zeitschritt -> 0.00195 | C53: =_a1*SIN(2*PI()*_f1*B53) -> 0.940880769 | D53: =_a2*SIN(2*PI()*_f2*(B53+Delta_t)) -> 0.9645574185 | E53: 1.905438187
A54: 40 | B54: =B53+Zeitschritt -> 0.002 | C54: =_a1*SIN(2*PI()*_f1*B54) -> 0.9510565163 | D54: =_a2*SIN(2*PI()*_f2*(B54+Delta_t)) -> 0.9510565163 | E54: 1.902113033
A55: 41 | B55: =B54+Zeitschritt -> 0.00205 | C55: =_a1*SIN(2*PI()*_f1*B55) -> 0.9602936857 | D55: =_a2*SIN(2*PI()*_f2*(B55+Delta_t)) -> 0.9354440308 | E55: 1.895737717
A56: 42 | B56: =B55+Zeitschritt -> 0.0021 | C56: =_a1*SIN(2*PI()*_f1*B56) -> 0.9685831611 | D56: =_a2*SIN(2*PI()*_f2*(B56+Delta_t)) -> 0.9177546257 | E56: 1.886337787
A57: 43 | B57: =B56+Zeitschritt -> 0.00215 | C57: =_a1*SIN(2*PI()*_f1*B57) -> 0.9759167619 | D57: =_a2*SIN(2*PI()*_f2*(B57+Delta_t)) -> 0.8980275758 | E57: 1.873944338
A58: 44 | B58: =B57+Zeitschritt -> 0.0022 | C58: =_a1*SIN(2*PI()*_f1*B58) -> 0.9822872507 | D58: =_a2*SIN(2*PI()*_f2*(B58+Delta_t)) -> 0.87630668 | E58: 1.858593931
A59: 45 | B59: =B58+Zeitschritt -> 0.00225 | C59: =_a1*SIN(2*PI()*_f1*B59) -> 0.9876883406 | D59: =_a2*SIN(2*PI()*_f2*(B59+Delta_t)) -> 0.8526401644 | E59: 1.840328505
A60: 46 | B60: =B59+Zeitschritt -> 0.0023 | C60: =_a1*SIN(2*PI()*_f1*B60) -> 0.9921147013 | D60: =_a2*SIN(2*PI()*_f2*(B60+Delta_t)) -> 0.8270805743 | E60: 1.819195276
A61: 47 | B61: =B60+Zeitschritt -> 0.00235 | C61: =_a1*SIN(2*PI()*_f1*B61) -> 0.9955619646 | D61: =_a2*SIN(2*PI()*_f2*(B61+Delta_t)) -> 0.7996846585 | E61: 1.795246623
A62: 48 | B62: =B61+Zeitschritt -> 0.0024 | C62: =_a1*SIN(2*PI()*_f1*B62) -> 0.9980267284 | D62: =_a2*SIN(2*PI()*_f2*(B62+Delta_t)) -> 0.7705132428 | E62: 1.768539971
A63: 49 | B63: =B62+Zeitschritt -> 0.00245 | C63: =_a1*SIN(2*PI()*_f1*B63) -> 0.9995065604 | D63: =_a2*SIN(2*PI()*_f2*(B63+Delta_t)) -> 0.739631095 | E63: 1.739137655
A64: 50 | B64: =B63+Zeitschritt -> 0.0025 | C64: =_a1*SIN(2*PI()*_f1*B64) -> 1 | D64: =_a2*SIN(2*PI()*_f2*(B64+Delta_t)) -> 0.7071067812 | E64: 1.707106781
A65: 51 | B65: =B64+Zeitschritt -> 0.00255 | C65: =_a1*SIN(2*PI()*_f1*B65) -> 0.9995065604 | D65: =_a2*SIN(2*PI()*_f2*(B65+Delta_t)) -> 0.6730125135 | E65: 1.672519074
A66: 52 | B66: =B65+Zeitschritt -> 0.0026 | C66: =_a1*SIN(2*PI()*_f1*B66) -> 0.9980267284 | D66: =_a2*SIN(2*PI()*_f2*(B66+Delta_t)) -> 0.6374239897 | E66: 1.635450718
A67: 53 | B67: =B66+Zeitschritt -> 0.00265 | C67: =_a1*SIN(2*PI()*_f1*B67) -> 0.9955619646 | D67: =_a2*SIN(2*PI()*_f2*(B67+Delta_t)) -> 0.6004202253 | E67: 1.59598219
A68: 54 | B68: =B67+Zeitschritt -> 0.0027 | C68: =_a1*SIN(2*PI()*_f1*B68) -> 0.9921147013 | D68: =_a2*SIN(2*PI()*_f2*(B68+Delta_t)) -> 0.5620833779 | E68: 1.554198079
A69: 55 | B69: =B68+Zeitschritt -> 0.00275 | C69: =_a1*SIN(2*PI()*_f1*B69) -> 0.9876883406 | D69: =_a2*SIN(2*PI()*_f2*(B69+Delta_t)) -> 0.5224985647 | E69: 1.510186905
A70: 56 | B70: =B69+Zeitschritt -> 0.0028 | C70: =_a1*SIN(2*PI()*_f1*B70) -> 0.9822872507 | D70: =_a2*SIN(2*PI()*_f2*(B70+Delta_t)) -> 0.4817536741 | E70: 1.464040925
A71: 57 | B71: =B70+Zeitschritt -> 0.00285 | C71: =_a1*SIN(2*PI()*_f1*B71) -> 0.9759167619 | D71: =_a2*SIN(2*PI()*_f2*(B71+Delta_t)) -> 0.4399391699 | E71: 1.415855932
A72: 58 | B72: =B71+Zeitschritt -> 0.0029 | C72: =_a1*SIN(2*PI()*_f1*B72) -> 0.9685831611 | D72: =_a2*SIN(2*PI()*_f2*(B72+Delta_t)) -> 0.3971478906 | E72: 1.365731052
A73: 59 | B73: =B72+Zeitschritt -> 0.00295 | C73: =_a1*SIN(2*PI()*_f1*B73) -> 0.9602936857 | D73: =_a2*SIN(2*PI()*_f2*(B73+Delta_t)) -> 0.3534748438 | E73: 1.313768529
A74: 60 | B74: =B73+Zeitschritt -> 0.003 | C74: =_a1*SIN(2*PI()*_f1*B74) -> 0.9510565163 | D74: =_a2*SIN(2*PI()*_f2*(B74+Delta_t)) -> 0.3090169944 | E74: 1.260073511
A75: 61 | B75: =B74+Zeitschritt -> 0.00305 | C75: =_a1*SIN(2*PI()*_f1*B75) -> 0.940880769 | D75: =_a2*SIN(2*PI()*_f2*(B75+Delta_t)) -> 0.26387305 | E75: 1.204753819
A76: 62 | B76: =B75+Zeitschritt -> 0.0031 | C76: =_a1*SIN(2*PI()*_f1*B76) -> 0.9297764859 | D76: =_a2*SIN(2*PI()*_f2*(B76+Delta_t)) -> 0.2181432414 | E76: 1.147919727
A77: 63 | B77: =B76+Zeitschritt -> 0.00315 | C77: =_a1*SIN(2*PI()*_f1*B77) -> 0.9177546257 | D77: =_a2*SIN(2*PI()*_f2*(B77+Delta_t)) -> 0.1719291003 | E77: 1.089683726
A78: 64 | B78: =B77+Zeitschritt -> 0.0032 | C78: =_a1*SIN(2*PI()*_f1*B78) -> 0.9048270525 | D78: =_a2*SIN(2*PI()*_f2*(B78+Delta_t)) -> 0.1253332336 | E78: 1.030160286
A79: 65 | B79: =B78+Zeitschritt -> 0.00325 | C79: =_a1*SIN(2*PI()*_f1*B79) -> 0.8910065242 | D79: =_a2*SIN(2*PI()*_f2*(B79+Delta_t)) -> 0.07845909573 | E79: 0.9694656199
A80: =A79+1 -> 66 | B80: =B79+Zeitschritt -> 0.0033 | C80: =_a1*SIN(2*PI()*_f1*B80) -> 0.87630668 | D80: =_a2*SIN(2*PI()*_f2*(B80+Delta_t)) -> 0.03141075908 | E80: 0.9077174391
A81: 67 | B81: =B80+Zeitschritt -> 0.00335 | C81: =_a1*SIN(2*PI()*_f1*B81) -> 0.860742027 | D81: =_a2*SIN(2*PI()*_f2*(B81+Delta_t)) -> -0.01570731731 | E81: 0.8450347097
A82: 68 | B82: =B81+Zeitschritt -> 0.0034 | C82: =_a1*SIN(2*PI()*_f1*B82) -> 0.8443279255 | D82: =_a2*SIN(2*PI()*_f2*(B82+Delta_t)) -> -0.06279051953 | E82: 0.781537406
A83: 69 | B83: =B82+Zeitschritt -> 0.00345 | C83: =_a1*SIN(2*PI()*_f1*B83) -> 0.8270805743 | D83: =_a2*SIN(2*PI()*_f2*(B83+Delta_t)) -> -0.1097343111 | E83: =C83+D83 -> 0.7173462632
A84: 70 | B84: =B83+Zeitschritt -> 0.0035 | C84: =_a1*SIN(2*PI()*_f1*B84) -> 0.8090169944 | D84: =_a2*SIN(2*PI()*_f2*(B84+Delta_t)) -> -0.156434465 | E84: 0.6525825293
A85: 71 | B85: =B84+Zeitschritt -> 0.00355 | C85: =_a1*SIN(2*PI()*_f1*B85) -> 0.7901550124 | D85: =_a2*SIN(2*PI()*_f2*(B85+Delta_t)) -> -0.2027872954 | E85: 0.587367717
A86: 72 | B86: =B85+Zeitschritt -> 0.0036 | C86: =_a1*SIN(2*PI()*_f1*B86) -> 0.7705132428 | D86: =_a2*SIN(2*PI()*_f2*(B86+Delta_t)) -> -0.2486898872 | E86: 0.5218233556
A87: 73 | B87: =B86+Zeitschritt -> 0.00365 | C87: =_a1*SIN(2*PI()*_f1*B87) -> 0.7501110696 | D87: =_a2*SIN(2*PI()*_f2*(B87+Delta_t)) -> -0.2940403252 | E87: 0.4560707444
A88: 74 | B88: =B87+Zeitschritt -> 0.0037 | C88: =_a1*SIN(2*PI()*_f1*B88) -> 0.7289686274 | D88: =_a2*SIN(2*PI()*_f2*(B88+Delta_t)) -> -0.3387379202 | E88: 0.3902307072
A89: 75 | B89: =B88+Zeitschritt -> 0.00375 | C89: =_a1*SIN(2*PI()*_f1*B89) -> 0.7071067812 | D89: =_a2*SIN(2*PI()*_f2*(B89+Delta_t)) -> -0.3826834324 | E89: 0.3244233488
A90: 76 | B90: =B89+Zeitschritt -> 0.0038 | C90: =_a1*SIN(2*PI()*_f1*B90) -> 0.6845471059 | D90: =_a2*SIN(2*PI()*_f2*(B90+Delta_t)) -> -0.4257792916 | E90: 0.2587678144
A91: 77 | B91: =B90+Zeitschritt -> 0.00385 | C91: =_a1*SIN(2*PI()*_f1*B91) -> 0.6613118653 | D91: =_a2*SIN(2*PI()*_f2*(B91+Delta_t)) -> -0.4679298143 | E91: 0.1933820511
A92: 78 | B92: =B91+Zeitschritt -> 0.0039 | C92: =_a1*SIN(2*PI()*_f1*B92) -> 0.6374239897 | D92: =_a2*SIN(2*PI()*_f2*(B92+Delta_t)) -> -0.5090414158 | E92: 0.128382574
A93: 79 | B93: =B92+Zeitschritt -> 0.00395 | C93: =_a1*SIN(2*PI()*_f1*B93) -> 0.6129070537 | D93: =_a2*SIN(2*PI()*_f2*(B93+Delta_t)) -> -0.549022818 | E93: 0.06388423565
A94: 80 | B94: =B93+Zeitschritt -> 0.004 | C94: =_a1*SIN(2*PI()*_f1*B94) -> 0.5877852523 | D94: =_a2*SIN(2*PI()*_f2*(B94+Delta_t)) -> -0.5877852523 | E94: -4.218847494e-15
A95: 81 | B95: =B94+Zeitschritt -> 0.00405 | C95: =_a1*SIN(2*PI()*_f1*B95) -> 0.5620833779 | D95: =_a2*SIN(2*PI()*_f2*(B95+Delta_t)) -> -0.6252426563 | E95: -0.06315927848
A96: 82 | B96: =B95+Zeitschritt -> 0.0041 | C96: =_a1*SIN(2*PI()*_f1*B96) -> 0.535826795 | D96: =_a2*SIN(2*PI()*_f2*(B96+Delta_t)) -> -0.6613118653 | E96: -0.1254850703
A97: 83 | B97: =B96+Zeitschritt -> 0.00415 | C97: =_a1*SIN(2*PI()*_f1*B97) -> 0.5090414158 | D97: =_a2*SIN(2*PI()*_f2*(B97+Delta_t)) -> -0.6959127966 | E97: -0.1868713808
A98: 84 | B98: =B97+Zeitschritt -> 0.0042 | C98: =_a1*SIN(2*PI()*_f1*B98) -> 0.4817536741 | D98: =_a2*SIN(2*PI()*_f2*(B98+Delta_t)) -> -0.7289686274 | E98: -0.2472149533
A99: 85 | B99: =B98+Zeitschritt -> 0.00425 | C99: =_a1*SIN(2*PI()*_f1*B99) -> 0.4539904997 | D99: =_a2*SIN(2*PI()*_f2*(B99+Delta_t)) -> -0.7604059656 | E99: -0.3064154659
A100: 86 | B100: =B99+Zeitschritt -> 0.0043 | C100: =_a1*SIN(2*PI()*_f1*B100) -> 0.4257792916 | D100: =_a2*SIN(2*PI()*_f2*(B100+Delta_t)) -> -0.7901550124 | E100: -0.3643757208
A101: 87 | B101: =B100+Zeitschritt -> 0.00435 | C101: =_a1*SIN(2*PI()*_f1*B101) -> 0.3971478906 | D101: =_a2*SIN(2*PI()*_f2*(B101+Delta_t)) -> -0.8181497174 | E101: -0.4210018268
A102: 88 | B102: =B101+Zeitschritt -> 0.0044 | C102: =_a1*SIN(2*PI()*_f1*B102) -> 0.3681245527 | D102: =_a2*SIN(2*PI()*_f2*(B102+Delta_t)) -> -0.8443279255 | E102: -0.4762033728
A103: 89 | B103: =B102+Zeitschritt -> 0.00445 | C103: =_a1*SIN(2*PI()*_f1*B103) -> 0.3387379202 | D103: =_a2*SIN(2*PI()*_f2*(B103+Delta_t)) -> -0.8686315144 | E103: -0.5298935942
A104: 90 | B104: =B103+Zeitschritt -> 0.0045 | C104: =_a1*SIN(2*PI()*_f1*B104) -> 0.3090169944 | D104: =_a2*SIN(2*PI()*_f2*(B104+Delta_t)) -> -0.8910065242 | E104: -0.5819895298
A105: 91 | B105: =B104+Zeitschritt -> 0.00455 | C105: =_a1*SIN(2*PI()*_f1*B105) -> 0.278991106 | D105: =_a2*SIN(2*PI()*_f2*(B105+Delta_t)) -> -0.9114032766 | E105: -0.6324121706
A106: 92 | B106: =B105+Zeitschritt -> 0.0046 | C106: =_a1*SIN(2*PI()*_f1*B106) -> 0.2486898872 | D106: =_a2*SIN(2*PI()*_f2*(B106+Delta_t)) -> -0.9297764859 | E106: -0.6810865987
A107: 93 | B107: =B106+Zeitschritt -> 0.00465 | C107: =_a1*SIN(2*PI()*_f1*B107) -> 0.2181432414 | D107: =_a2*SIN(2*PI()*_f2*(B107+Delta_t)) -> -0.9460853588 | E107: -0.7279421174
A108: 94 | B108: =B107+Zeitschritt -> 0.0047 | C108: =_a1*SIN(2*PI()*_f1*B108) -> 0.1873813146 | D108: =_a2*SIN(2*PI()*_f2*(B108+Delta_t)) -> -0.9602936857 | E108: -0.7729123711
A109: 95 | B109: =B108+Zeitschritt -> 0.00475 | C109: =_a1*SIN(2*PI()*_f1*B109) -> 0.156434465 | D109: =_a2*SIN(2*PI()*_f2*(B109+Delta_t)) -> -0.9723699204 | E109: -0.8159354554
A110: 96 | B110: =B109+Zeitschritt -> 0.0048 | C110: =_a1*SIN(2*PI()*_f1*B110) -> 0.1253332336 | D110: =_a2*SIN(2*PI()*_f2*(B110+Delta_t)) -> -0.9822872507 | E110: -0.8569540172
A111: 97 | B111: =B110+Zeitschritt -> 0.00485 | C111: =_a1*SIN(2*PI()*_f1*B111) -> 0.09410831332 | D111: =_a2*SIN(2*PI()*_f2*(B111+Delta_t)) -> -0.9900236577 | E111: -0.8959153444
A112: 98 | B112: =B111+Zeitschritt -> 0.0049 | C112: =_a1*SIN(2*PI()*_f1*B112) -> 0.06279051953 | D112: =_a2*SIN(2*PI()*_f2*(B112+Delta_t)) -> -0.9955619646 | E112: -0.9327714451
A113: 99 | B113: =B112+Zeitschritt -> 0.00495 | C113: =_a1*SIN(2*PI()*_f1*B113) -> 0.03141075908 | D113: =_a2*SIN(2*PI()*_f2*(B113+Delta_t)) -> -0.998889875 | E113: -0.9674791159
A114: 100 | B114: =B113+Zeitschritt -> 0.005 | C114: =_a1*SIN(2*PI()*_f1*B114) -> 1.454782475e-15 | D114: =_a2*SIN(2*PI()*_f2*(B114+Delta_t)) -> -1 | E114: -1
A115: 101 | B115: =B114+Zeitschritt -> 0.00505 | C115: =_a1*SIN(2*PI()*_f1*B115) -> -0.03141075908 | D115: =_a2*SIN(2*PI()*_f2*(B115+Delta_t)) -> -0.998889875 | E115: -1.030300634
A116: 102 | B116: =B115+Zeitschritt -> 0.0051 | C116: =_a1*SIN(2*PI()*_f1*B116) -> -0.06279051953 | D116: =_a2*SIN(2*PI()*_f2*(B116+Delta_t)) -> -0.9955619646 | E116: -1.058352484
A117: 103 | B117: =B116+Zeitschritt -> 0.00515 | C117: =_a1*SIN(2*PI()*_f1*B117) -> -0.09410831332 | D117: =_a2*SIN(2*PI()*_f2*(B117+Delta_t)) -> -0.9900236577 | E117: -1.084131971
A118: 104 | B118: =B117+Zeitschritt -> 0.0052 | C118: =_a1*SIN(2*PI()*_f1*B118) -> -0.1253332336 | D118: =_a2*SIN(2*PI()*_f2*(B118+Delta_t)) -> -0.9822872507 | E118: -1.107620484
A119: 105 | B119: =B118+Zeitschritt -> 0.00525 | C119: =_a1*SIN(2*PI()*_f1*B119) -> -0.156434465 | D119: =_a2*SIN(2*PI()*_f2*(B119+Delta_t)) -> -0.9723699204 | E119: -1.128804385
A120: 106 | B120: =B119+Zeitschritt -> 0.0053 | C120: =_a1*SIN(2*PI()*_f1*B120) -> -0.1873813146 | D120: =_a2*SIN(2*PI()*_f2*(B120+Delta_t)) -> -0.9602936857 | E120: -1.147675
A121: 107 | B121: =B120+Zeitschritt -> 0.00535 | C121: =_a1*SIN(2*PI()*_f1*B121) -> -0.2181432414 | D121: =_a2*SIN(2*PI()*_f2*(B121+Delta_t)) -> -0.9460853588 | E121: -1.1642286
A122: 108 | B122: =B121+Zeitschritt -> 0.0054 | C122: =_a1*SIN(2*PI()*_f1*B122) -> -0.2486898872 | D122: =_a2*SIN(2*PI()*_f2*(B122+Delta_t)) -> -0.9297764859 | E122: -1.178466373
A123: 109 | B123: =B122+Zeitschritt -> 0.00545 | C123: =_a1*SIN(2*PI()*_f1*B123) -> -0.278991106 | D123: =_a2*SIN(2*PI()*_f2*(B123+Delta_t)) -> -0.9114032766 | E123: -1.190394383
A124: 110 | B124: =B123+Zeitschritt -> 0.0055 | C124: =_a1*SIN(2*PI()*_f1*B124) -> -0.3090169944 | D124: =_a2*SIN(2*PI()*_f2*(B124+Delta_t)) -> -0.8910065242 | E124: -1.200023519
A125: 111 | B125: =B124+Zeitschritt -> 0.00555 | C125: =_a1*SIN(2*PI()*_f1*B125) -> -0.3387379202 | D125: =_a2*SIN(2*PI()*_f2*(B125+Delta_t)) -> -0.8686315144 | E125: -1.207369435
A126: 112 | B126: =B125+Zeitschritt -> 0.0056 | C126: =_a1*SIN(2*PI()*_f1*B126) -> -0.3681245527 | D126: =_a2*SIN(2*PI()*_f2*(B126+Delta_t)) -> -0.8443279255 | E126: -1.212452478
A127: 113 | B127: =B126+Zeitschritt -> 0.00565 | C127: =_a1*SIN(2*PI()*_f1*B127) -> -0.3971478906 | D127: =_a2*SIN(2*PI()*_f2*(B127+Delta_t)) -> -0.8181497174 | E127: -1.215297608
A128: 114 | B128: =B127+Zeitschritt -> 0.0057 | C128: =_a1*SIN(2*PI()*_f1*B128) -> -0.4257792916 | D128: =_a2*SIN(2*PI()*_f2*(B128+Delta_t)) -> -0.7901550124 | E128: -1.215934304
A129: 115 | B129: =B128+Zeitschritt -> 0.00575 | C129: =_a1*SIN(2*PI()*_f1*B129) -> -0.4539904997 | D129: =_a2*SIN(2*PI()*_f2*(B129+Delta_t)) -> -0.7604059656 | E129: -1.214396465
A130: 116 | B130: =B129+Zeitschritt -> 0.0058 | C130: =_a1*SIN(2*PI()*_f1*B130) -> -0.4817536741 | D130: =_a2*SIN(2*PI()*_f2*(B130+Delta_t)) -> -0.7289686274 | E130: -1.210722302
A131: 117 | B131: =B130+Zeitschritt -> 0.00585 | C131: =_a1*SIN(2*PI()*_f1*B131) -> -0.5090414158 | D131: =_a2*SIN(2*PI()*_f2*(B131+Delta_t)) -> -0.6959127966 | E131: -1.204954212
A132: 118 | B132: =B131+Zeitschritt -> 0.0059 | C132: =_a1*SIN(2*PI()*_f1*B132) -> -0.535826795 | D132: =_a2*SIN(2*PI()*_f2*(B132+Delta_t)) -> -0.6613118653 | E132: -1.19713866
A133: 119 | B133: =B132+Zeitschritt -> 0.00595 | C133: =_a1*SIN(2*PI()*_f1*B133) -> -0.5620833779 | D133: =_a2*SIN(2*PI()*_f2*(B133+Delta_t)) -> -0.6252426563 | E133: -1.187326034
A134: 120 | B134: =B133+Zeitschritt -> 0.006 | C134: =_a1*SIN(2*PI()*_f1*B134) -> -0.5877852523 | D134: =_a2*SIN(2*PI()*_f2*(B134+Delta_t)) -> -0.5877852523 | E134: -1.175570505
A135: 121 | B135: =B134+Zeitschritt -> 0.00605 | C135: =_a1*SIN(2*PI()*_f1*B135) -> -0.6129070537 | D135: =_a2*SIN(2*PI()*_f2*(B135+Delta_t)) -> -0.549022818 | E135: -1.161929872
A136: 122 | B136: =B135+Zeitschritt -> 0.0061 | C136: =_a1*SIN(2*PI()*_f1*B136) -> -0.6374239897 | D136: =_a2*SIN(2*PI()*_f2*(B136+Delta_t)) -> -0.5090414158 | E136: -1.146465405
A137: 123 | B137: =B136+Zeitschritt -> 0.00615 | C137: =_a1*SIN(2*PI()*_f1*B137) -> -0.6613118653 | D137: =_a2*SIN(2*PI()*_f2*(B137+Delta_t)) -> -0.4679298143 | E137: -1.12924168
A138: 124 | B138: =B137+Zeitschritt -> 0.0062 | C138: =_a1*SIN(2*PI()*_f1*B138) -> -0.6845471059 | D138: =_a2*SIN(2*PI()*_f2*(B138+Delta_t)) -> -0.4257792916 | E138: -1.110326397
A139: 125 | B139: =B138+Zeitschritt -> 0.00625 | C139: =_a1*SIN(2*PI()*_f1*B139) -> -0.7071067812 | D139: =_a2*SIN(2*PI()*_f2*(B139+Delta_t)) -> -0.3826834324 | E139: -1.089790214
A140: 126 | B140: =B139+Zeitschritt -> 0.0063 | C140: =_a1*SIN(2*PI()*_f1*B140) -> -0.7289686274 | D140: =_a2*SIN(2*PI()*_f2*(B140+Delta_t)) -> -0.3387379202 | E140: -1.067706548
A141: 127 | B141: =B140+Zeitschritt -> 0.00635 | C141: =_a1*SIN(2*PI()*_f1*B141) -> -0.7501110696 | D141: =_a2*SIN(2*PI()*_f2*(B141+Delta_t)) -> -0.2940403252 | E141: -1.044151395
A142: 128 | B142: =B141+Zeitschritt -> 0.0064 | C142: =_a1*SIN(2*PI()*_f1*B142) -> -0.7705132428 | D142: =_a2*SIN(2*PI()*_f2*(B142+Delta_t)) -> -0.2486898872 | E142: -1.01920313
A143: 129 | B143: =B142+Zeitschritt -> 0.00645 | C143: =_a1*SIN(2*PI()*_f1*B143) -> -0.7901550124 | D143: =_a2*SIN(2*PI()*_f2*(B143+Delta_t)) -> -0.2027872954 | E143: -0.9929423077
A144: =A143+1 -> 130 | B144: =B143+Zeitschritt -> 0.0065 | C144: =_a1*SIN(2*PI()*_f1*B144) -> -0.8090169944 | D144: =_a2*SIN(2*PI()*_f2*(B144+Delta_t)) -> -0.156434465 | E144: -0.9654514594
A145: 131 | B145: =B144+Zeitschritt -> 0.00655 | C145: =_a1*SIN(2*PI()*_f1*B145) -> -0.8270805743 | D145: =_a2*SIN(2*PI()*_f2*(B145+Delta_t)) -> -0.1097343111 | E145: -0.9368148854
A146: 132 | B146: =B145+Zeitschritt -> 0.0066 | C146: =_a1*SIN(2*PI()*_f1*B146) -> -0.8443279255 | D146: =_a2*SIN(2*PI()*_f2*(B146+Delta_t)) -> -0.06279051953 | E146: -0.907118445
A147: 133 | B147: =B146+Zeitschritt -> 0.00665 | C147: =_a1*SIN(2*PI()*_f1*B147) -> -0.860742027 | D147: =_a2*SIN(2*PI()*_f2*(B147+Delta_t)) -> -0.01570731731 | E147: =C147+D147 -> -0.8764493443
A148: 134 | B148: =B147+Zeitschritt -> 0.0067 | C148: =_a1*SIN(2*PI()*_f1*B148) -> -0.87630668 | D148: =_a2*SIN(2*PI()*_f2*(B148+Delta_t)) -> 0.03141075908 | E148: -0.844895921
A149: 135 | B149: =B148+Zeitschritt -> 0.00675 | C149: =_a1*SIN(2*PI()*_f1*B149) -> -0.8910065242 | D149: =_a2*SIN(2*PI()*_f2*(B149+Delta_t)) -> 0.07845909573 | E149: -0.8125474285
A150: 136 | B150: =B149+Zeitschritt -> 0.0068 | C150: =_a1*SIN(2*PI()*_f1*B150) -> -0.9048270525 | D150: =_a2*SIN(2*PI()*_f2*(B150+Delta_t)) -> 0.1253332336 | E150: -0.7794938189
A151: 137 | B151: =B150+Zeitschritt -> 0.00685 | C151: =_a1*SIN(2*PI()*_f1*B151) -> -0.9177546257 | D151: =_a2*SIN(2*PI()*_f2*(B151+Delta_t)) -> 0.1719291003 | E151: -0.7458255254
A152: 138 | B152: =B151+Zeitschritt -> 0.0069 | C152: =_a1*SIN(2*PI()*_f1*B152) -> -0.9297764859 | D152: =_a2*SIN(2*PI()*_f2*(B152+Delta_t)) -> 0.2181432414 | E152: -0.7116332445
A153: 139 | B153: =B152+Zeitschritt -> 0.00695 | C153: =_a1*SIN(2*PI()*_f1*B153) -> -0.940880769 | D153: =_a2*SIN(2*PI()*_f2*(B153+Delta_t)) -> 0.26387305 | E153: -0.677007719
A154: 140 | B154: =B153+Zeitschritt -> 0.007 | C154: =_a1*SIN(2*PI()*_f1*B154) -> -0.9510565163 | D154: =_a2*SIN(2*PI()*_f2*(B154+Delta_t)) -> 0.3090169944 | E154: -0.6420395219
A155: 141 | B155: =B154+Zeitschritt -> 0.00705 | C155: =_a1*SIN(2*PI()*_f1*B155) -> -0.9602936857 | D155: =_a2*SIN(2*PI()*_f2*(B155+Delta_t)) -> 0.3534748438 | E155: -0.6068188419
A156: 142 | B156: =B155+Zeitschritt -> 0.0071 | C156: =_a1*SIN(2*PI()*_f1*B156) -> -0.9685831611 | D156: =_a2*SIN(2*PI()*_f2*(B156+Delta_t)) -> 0.3971478906 | E156: -0.5714352705
A157: 143 | B157: =B156+Zeitschritt -> 0.00715 | C157: =_a1*SIN(2*PI()*_f1*B157) -> -0.9759167619 | D157: =_a2*SIN(2*PI()*_f2*(B157+Delta_t)) -> 0.4399391699 | E157: -0.5359775921
A158: 144 | B158: =B157+Zeitschritt -> 0.0072 | C158: =_a1*SIN(2*PI()*_f1*B158) -> -0.9822872507 | D158: =_a2*SIN(2*PI()*_f2*(B158+Delta_t)) -> 0.4817536741 | E158: -0.5005335766
A159: 145 | B159: =B158+Zeitschritt -> 0.00725 | C159: =_a1*SIN(2*PI()*_f1*B159) -> -0.9876883406 | D159: =_a2*SIN(2*PI()*_f2*(B159+Delta_t)) -> 0.5224985647 | E159: -0.4651897759
A160: 146 | B160: =B159+Zeitschritt -> 0.0073 | C160: =_a1*SIN(2*PI()*_f1*B160) -> -0.9921147013 | D160: =_a2*SIN(2*PI()*_f2*(B160+Delta_t)) -> 0.5620833779 | E160: -0.4300313235
A161: 147 | B161: =B160+Zeitschritt -> 0.00735 | C161: =_a1*SIN(2*PI()*_f1*B161) -> -0.9955619646 | D161: =_a2*SIN(2*PI()*_f2*(B161+Delta_t)) -> 0.6004202253 | E161: -0.3951417393
A162: 148 | B162: =B161+Zeitschritt -> 0.0074 | C162: =_a1*SIN(2*PI()*_f1*B162) -> -0.9980267284 | D162: =_a2*SIN(2*PI()*_f2*(B162+Delta_t)) -> 0.6374239897 | E162: -0.3606027387
A163: 149 | B163: =B162+Zeitschritt -> 0.00745 | C163: =_a1*SIN(2*PI()*_f1*B163) -> -0.9995065604 | D163: =_a2*SIN(2*PI()*_f2*(B163+Delta_t)) -> 0.6730125135 | E163: -0.3264940469
A164: 150 | B164: =B163+Zeitschritt -> 0.0075 | C164: =_a1*SIN(2*PI()*_f1*B164) -> -1 | D164: =_a2*SIN(2*PI()*_f2*(B164+Delta_t)) -> 0.7071067812 | E164: -0.2928932188
A165: 151 | B165: =B164+Zeitschritt -> 0.00755 | C165: =_a1*SIN(2*PI()*_f1*B165) -> -0.9995065604 | D165: =_a2*SIN(2*PI()*_f2*(B165+Delta_t)) -> 0.739631095 | E165: -0.2598754654
A166: 152 | B166: =B165+Zeitschritt -> 0.0076 | C166: =_a1*SIN(2*PI()*_f1*B166) -> -0.9980267284 | D166: =_a2*SIN(2*PI()*_f2*(B166+Delta_t)) -> 0.7705132428 | E166: -0.2275134857
A167: 153 | B167: =B166+Zeitschritt -> 0.00765 | C167: =_a1*SIN(2*PI()*_f1*B167) -> -0.9955619646 | D167: =_a2*SIN(2*PI()*_f2*(B167+Delta_t)) -> 0.7996846585 | E167: -0.1958773061
A168: 154 | B168: =B167+Zeitschritt -> 0.0077 | C168: =_a1*SIN(2*PI()*_f1*B168) -> -0.9921147013 | D168: =_a2*SIN(2*PI()*_f2*(B168+Delta_t)) -> 0.8270805743 | E168: -0.165034127
A169: 155 | B169: =B168+Zeitschritt -> 0.00775 | C169: =_a1*SIN(2*PI()*_f1*B169) -> -0.9876883406 | D169: =_a2*SIN(2*PI()*_f2*(B169+Delta_t)) -> 0.8526401644 | E169: -0.1350481762
A170: 156 | B170: =B169+Zeitschritt -> 0.0078 | C170: =_a1*SIN(2*PI()*_f1*B170) -> -0.9822872507 | D170: =_a2*SIN(2*PI()*_f2*(B170+Delta_t)) -> 0.87630668 | E170: -0.1059805707
A171: 157 | B171: =B170+Zeitschritt -> 0.00785 | C171: =_a1*SIN(2*PI()*_f1*B171) -> -0.9759167619 | D171: =_a2*SIN(2*PI()*_f2*(B171+Delta_t)) -> 0.8980275758 | E171: -0.07788918618
A172: 158 | B172: =B171+Zeitschritt -> 0.0079 | C172: =_a1*SIN(2*PI()*_f1*B172) -> -0.9685831611 | D172: =_a2*SIN(2*PI()*_f2*(B172+Delta_t)) -> 0.9177546257 | E172: -0.05082853544
A173: 159 | B173: =B172+Zeitschritt -> 0.00795 | C173: =_a1*SIN(2*PI()*_f1*B173) -> -0.9602936857 | D173: =_a2*SIN(2*PI()*_f2*(B173+Delta_t)) -> 0.9354440308 | E173: -0.02484965485
A174: 160 | B174: =B173+Zeitschritt -> 0.008 | C174: =_a1*SIN(2*PI()*_f1*B174) -> -0.9510565163 | D174: =_a2*SIN(2*PI()*_f2*(B174+Delta_t)) -> 0.9510565163 | E174: -1.010302952e-14
A175: 161 | B175: =B174+Zeitschritt -> 0.00805 | C175: =_a1*SIN(2*PI()*_f1*B175) -> -0.940880769 | D175: =_a2*SIN(2*PI()*_f2*(B175+Delta_t)) -> 0.9645574185 | E175: 0.0236766495
A176: 162 | B176: =B175+Zeitschritt -> 0.0081 | C176: =_a1*SIN(2*PI()*_f1*B176) -> -0.9297764859 | D176: =_a2*SIN(2*PI()*_f2*(B176+Delta_t)) -> 0.9759167619 | E176: 0.04614027605
A177: 163 | B177: =B176+Zeitschritt -> 0.00815 | C177: =_a1*SIN(2*PI()*_f1*B177) -> -0.9177546257 | D177: =_a2*SIN(2*PI()*_f2*(B177+Delta_t)) -> 0.9851093262 | E177: 0.06735470047
A178: 164 | B178: =B177+Zeitschritt -> 0.0082 | C178: =_a1*SIN(2*PI()*_f1*B178) -> -0.9048270525 | D178: =_a2*SIN(2*PI()*_f2*(B178+Delta_t)) -> 0.9921147013 | E178: 0.08728764885
A179: 165 | B179: =B178+Zeitschritt -> 0.00825 | C179: =_a1*SIN(2*PI()*_f1*B179) -> -0.8910065242 | D179: =_a2*SIN(2*PI()*_f2*(B179+Delta_t)) -> 0.9969173337 | E179: 0.1059108095
A180: 166 | B180: =B179+Zeitschritt -> 0.0083 | C180: =_a1*SIN(2*PI()*_f1*B180) -> -0.87630668 | D180: =_a2*SIN(2*PI()*_f2*(B180+Delta_t)) -> 0.9995065604 | E180: 0.1231998803
A181: 167 | B181: =B180+Zeitschritt -> 0.00835 | C181: =_a1*SIN(2*PI()*_f1*B181) -> -0.860742027 | D181: =_a2*SIN(2*PI()*_f2*(B181+Delta_t)) -> 0.9998766325 | E181: 0.1391346055
A182: 168 | B182: =B181+Zeitschritt -> 0.0084 | C182: =_a1*SIN(2*PI()*_f1*B182) -> -0.8443279255 | D182: =_a2*SIN(2*PI()*_f2*(B182+Delta_t)) -> 0.9980267284 | E182: 0.1536988029
A183: 169 | B183: =B182+Zeitschritt -> 0.00845 | C183: =_a1*SIN(2*PI()*_f1*B183) -> -0.8270805743 | D183: =_a2*SIN(2*PI()*_f2*(B183+Delta_t)) -> 0.9939609555 | E183: 0.1668803812
A184: 170 | B184: =B183+Zeitschritt -> 0.0085 | C184: =_a1*SIN(2*PI()*_f1*B184) -> -0.8090169944 | D184: =_a2*SIN(2*PI()*_f2*(B184+Delta_t)) -> 0.9876883406 | E184: 0.1786713462
A185: 171 | B185: =B184+Zeitschritt -> 0.00855 | C185: =_a1*SIN(2*PI()*_f1*B185) -> -0.7901550124 | D185: =_a2*SIN(2*PI()*_f2*(B185+Delta_t)) -> 0.9792228106 | E185: 0.1890677982
A186: 172 | B186: =B185+Zeitschritt -> 0.0086 | C186: =_a1*SIN(2*PI()*_f1*B186) -> -0.7705132428 | D186: =_a2*SIN(2*PI()*_f2*(B186+Delta_t)) -> 0.9685831611 | E186: 0.1980699184
A187: 173 | B187: =B186+Zeitschritt -> 0.00865 | C187: =_a1*SIN(2*PI()*_f1*B187) -> -0.7501110696 | D187: =_a2*SIN(2*PI()*_f2*(B187+Delta_t)) -> 0.9557930148 | E187: 0.2056819452
A188: 174 | B188: =B187+Zeitschritt -> 0.0087 | C188: =_a1*SIN(2*PI()*_f1*B188) -> -0.7289686274 | D188: =_a2*SIN(2*PI()*_f2*(B188+Delta_t)) -> 0.940880769 | E188: 0.2119121415
A189: 175 | B189: =B188+Zeitschritt -> 0.00875 | C189: =_a1*SIN(2*PI()*_f1*B189) -> -0.7071067812 | D189: =_a2*SIN(2*PI()*_f2*(B189+Delta_t)) -> 0.9238795325 | E189: 0.2167727513
A190: 176 | B190: =B189+Zeitschritt -> 0.0088 | C190: =_a1*SIN(2*PI()*_f1*B190) -> -0.6845471059 | D190: =_a2*SIN(2*PI()*_f2*(B190+Delta_t)) -> 0.9048270525 | E190: 0.2202799465
A191: 177 | B191: =B190+Zeitschritt -> 0.00885 | C191: =_a1*SIN(2*PI()*_f1*B191) -> -0.6613118653 | D191: =_a2*SIN(2*PI()*_f2*(B191+Delta_t)) -> 0.8837656301 | E191: 0.2224537648
A192: 178 | B192: =B191+Zeitschritt -> 0.0089 | C192: =_a1*SIN(2*PI()*_f1*B192) -> -0.6374239897 | D192: =_a2*SIN(2*PI()*_f2*(B192+Delta_t)) -> 0.860742027 | E192: 0.2233180373
A193: 179 | B193: =B192+Zeitschritt -> 0.00895 | C193: =_a1*SIN(2*PI()*_f1*B193) -> -0.6129070537 | D193: =_a2*SIN(2*PI()*_f2*(B193+Delta_t)) -> 0.8358073614 | E193: 0.2229003077
A194: 180 | B194: =B193+Zeitschritt -> 0.009 | C194: =_a1*SIN(2*PI()*_f1*B194) -> -0.5877852523 | D194: =_a2*SIN(2*PI()*_f2*(B194+Delta_t)) -> 0.8090169944 | E194: 0.2212317421
A195: 181 | B195: =B194+Zeitschritt -> 0.00905 | C195: =_a1*SIN(2*PI()*_f1*B195) -> -0.5620833779 | D195: =_a2*SIN(2*PI()*_f2*(B195+Delta_t)) -> 0.7804304073 | E195: 0.2183470295
A196: 182 | B196: =B195+Zeitschritt -> 0.0091 | C196: =_a1*SIN(2*PI()*_f1*B196) -> -0.535826795 | D196: =_a2*SIN(2*PI()*_f2*(B196+Delta_t)) -> 0.7501110696 | E196: 0.2142842747
A197: 183 | B197: =B196+Zeitschritt -> 0.00915 | C197: =_a1*SIN(2*PI()*_f1*B197) -> -0.5090414158 | D197: =_a2*SIN(2*PI()*_f2*(B197+Delta_t)) -> 0.7181262978 | E197: 0.209084882
A198: 184 | B198: =B197+Zeitschritt -> 0.0092 | C198: =_a1*SIN(2*PI()*_f1*B198) -> -0.4817536741 | D198: =_a2*SIN(2*PI()*_f2*(B198+Delta_t)) -> 0.6845471059 | E198: 0.2027934318
A199: 185 | B199: =B198+Zeitschritt -> 0.00925 | C199: =_a1*SIN(2*PI()*_f1*B199) -> -0.4539904997 | D199: =_a2*SIN(2*PI()*_f2*(B199+Delta_t)) -> 0.6494480483 | E199: 0.1954575486
A200: 186 | B200: =B199+Zeitschritt -> 0.0093 | C200: =_a1*SIN(2*PI()*_f1*B200) -> -0.4257792916 | D200: =_a2*SIN(2*PI()*_f2*(B200+Delta_t)) -> 0.6129070537 | E200: 0.1871277621
A201: 187 | B201: =B200+Zeitschritt -> 0.00935 | C201: =_a1*SIN(2*PI()*_f1*B201) -> -0.3971478906 | D201: =_a2*SIN(2*PI()*_f2*(B201+Delta_t)) -> 0.575005252 | E201: 0.1778573614
A202: 188 | B202: =B201+Zeitschritt -> 0.0094 | C202: =_a1*SIN(2*PI()*_f1*B202) -> -0.3681245527 | D202: =_a2*SIN(2*PI()*_f2*(B202+Delta_t)) -> 0.535826795 | E202: 0.1677022423
... 1812 more rows
